bitfinex/quotes_ETHUSD_20250626
["timestamp","ask_amount","ask_price","bid_price","bid_amount"]
[1750921830686,0.2008,2486.1,2485.7,2.61490754]
[1750921831065,0.2008,2486.1,2485.8,2.61484589]
[1750921831397,0.2008,2486.1,2485.7,2.61490322]
[1750921831597,0.2008,2486.1,2485.8,2.6147966]
[1750921831800,0.2008,2486.1,2485.6,0.2008]
[1750921831961,0.2008,2486.1,2485.7,2.61495683]
[1750921832660,0.7828,2486.0,2485.5,2.61512175]
[1750921832863,0.2008,2485.8,2485.5,2.61512175]
[1750921833598,0.2008,2485.8,2485.4,0.2008]
[1750921833599,0.2008,2485.8,2485.4,2.81599095]
[1750921834595,0.2008,2485.8,2485.4,0.2008]
[1750921834596,0.7887,2485.7,2485.4,0.2008]
[1750921834797,0.7887,2485.7,2485.0,13.94547743]
[1750921835098,0.9895,2485.7,2485.4,2.61520414]
[1750921835695,0.9895,2485.7,2485.3,2.6153215]
[1750921835891,0.2008,2485.7,2485.4,0.7682]
[1750921836194,1.0317,2485.7,2485.4,2.61520872]
[1750921836584,1.0317,2485.7,2485.5,2.6151576]
[1750921836785,1.0317,2485.7,2485.3,2.61533681]
[1750921837185,1.0317,2485.7,2485.2,2.8162335]
[1750921838069,1.0317,2485.7,2485.0,3.16562071]
[1750921838070,0.2008,2485.4,2485.0,2.615659]
[1750921838270,0.2008,2485.4,2484.9,2.81653922]
[1750921840103,0.8262,2485.6,2484.8,2.61585718]
[1750921840291,1.027,2485.2,2484.9,2.6157492]
[1750921840490,1.027,2485.2,2484.8,2.61585143]
[1750921840696,0.8262,2485.2,2484.8,2.61585143]
[1750921840895,0.2008,2485.1,2484.8,2.61585143]
[1750921841773,0.2008,2485.1,2484.9,2.61571567]
[1750921842178,0.2008,2485.1,2485.0,2.61569416]
[1750921842617,0.2008,2485.1,2484.6,0.2008]
[1750921842618,0.2008,2485.1,2484.7,2.61600998]
[1750921842815,0.2008,2485.1,2484.9,2.61579442]
[1750921843120,0.2008,2485.1,2484.8,2.61585226]
[1750921843417,0.2008,2485.1,2484.7,2.61596381]
[1750921843614,0.2008,2485.1,2484.6,0.2008]
[1750921843780,0.2008,2484.9,2484.7,2.61599555]
[1750921844186,0.2008,2484.9,2484.8,2.6159047]
[1750921847718,0.2008,2484.9,2484.7,2.61595922]
[1750921848017,0.2008,2484.9,2484.7,2.6159562]
[1750921848613,0.2008,2484.9,2484.8,2.6159047]
[1750921853264,0.2008,2484.9,2484.5,0.2008]
[1750921853387,0.7549,2484.8,2484.5,2.81696822]
[1750921853594,0.7549,2484.8,2484.4,2.61625971]
[1750921853894,0.2008,2484.6,2484.4,2.61625971]
[1750921854304,0.2008,2484.6,2484.5,2.61622056]
[1750921855525,0.2008,2484.6,2484.4,2.61626081]
[1750921856021,0.2008,2484.6,2484.5,2.61622056]
[1750921856519,0.2008,2484.9,2484.5,0.7962]
[1750921856701,0.2008,2484.9,2484.8,2.61586363]
[1750921858048,0.7769,2485.4,2484.7,0.7962]
[1750921858225,0.27557,2485.7,2485.2,2.6153968]
[1750921858226,0.2008,2485.3,2485.2,2.6153968]
[1750921859248,0.2008,2485.3,2485.1,3.41173161]
[1750921859451,0.2008,2485.3,2485.1,2.61553161]
[1750921860572,0.2008,2485.3,2485.2,2.61548366]
[1750921861130,0.8066,2485.9,2485.3,0.7936]
[1750921861337,0.2008,2485.8,2485.5,2.61512476]
[1750921861536,0.2008,2485.8,2485.4,2.61524851]
[1750921861831,0.2008,2485.8,2485.6,2.6150271]
[1750921862018,0.8066,2485.9,2485.6,2.6150007]
[1750921862216,0.2008,2485.9,2485.7,2.61489863]
[1750921862454,0.2008,2485.9,2485.8,2.61485236]
[1750921862747,0.2008,2485.9,2485.8,3.36655236]
[1750921862950,0.2008,2486.2,2486.1,2.61450192]
[1750921863126,1.9488,2486.4,2486.2,2.61440707]
[1750921863333,3.19216,2486.4,2486.2,2.61440707]
[1750921863535,1.9488,2486.4,2486.2,2.61440707]
[1750921863934,1.9488,2486.4,2486.1,2.6144876]
[1750921864857,1.9488,2486.4,2486.0,2.6145932]
[1750921865062,20.67238523,2486.3,2485.5,2.61508189]
[1750921865352,13.01261852,2486.2,2485.4,3.44432535]
[1750921865545,13.01261852,2486.2,2485.7,2.61490391]
[1750921865853,13.01261852,2486.2,2485.5,0.55]
[1750921866046,13.01261852,2486.2,2485.8,2.61484462]
[1750921866426,13.01261852,2486.2,2485.9,2.61469412]
[1750921866848,13.01261852,2486.2,2485.8,2.61479018]
[1750921867042,1.47606185,2486.1,2485.7,2.61492608]
[1750921867323,1.47606185,2486.1,2485.6,2.61500635]
[1750921867526,1.47606185,2486.1,2485.5,2.61510653]
[1750921867746,1.47606185,2486.1,2485.5,2.61515978]
[1750921868661,1.47606185,2486.1,2485.5,2.61513949]
[1750921868959,1.22265619,2486.0,2485.5,2.61513949]
[1750921869571,1.22265619,2486.0,2485.4,3.44434423]
[1750921869572,1.22265619,2486.0,2485.6,2.61505192]
[1750921869859,1.22265619,2486.0,2485.5,2.61511535]
[1750921870557,1.22265619,2486.0,2485.4,3.44432458]
[1750921870776,0.7933,2485.9,2485.4,2.61526817]
[1750921870924,0.7933,2485.9,2485.5,2.61511477]
[1750921871130,0.7933,2485.9,2485.3,2.61533536]
[1750921871450,0.7933,2485.9,2485.4,2.61527319]
[1750921871625,0.99489562,2485.9,2485.3,2.61537454]
[1750921871831,0.99489562,2485.9,2485.4,2.61521827]
[1750921872060,0.99489562,2485.9,2485.4,2.61517376]
[1750921873075,0.99489562,2485.9,2485.3,2.61533229]
[1750921873376,0.99489562,2485.9,2485.4,2.61526358]
[1750921873577,0.22175518,2485.8,2485.4,2.61526358]
[1750921873877,0.22175518,2485.8,2485.3,2.61531467]
[1750921875175,0.42255518,2485.8,2485.3,2.81611467]
[1750921876369,0.777,2485.7,2485.3,0.2008]
[1750921877559,0.777,2485.7,2485.4,2.61521586]
[1750921877866,0.777,2485.7,2485.3,2.81613353]
[1750921878578,0.777,2485.7,2485.3,0.2008]
[1750921879847,0.777,2485.7,2485.3,2.81616383]
[1750921880255,0.777,2485.7,2485.3,0.2008]
[1750921880457,0.777,2485.7,2485.3,2.81611349]
[1750921880660,0.777,2485.7,2485.3,0.2008]
[1750921880859,1.07155552,2485.7,2485.3,0.2008]
[1750921883374,1.07155552,2485.7,2485.1,2.61555425]
[1750921883678,0.2008,2485.6,2485.2,2.61546748]
[1750921884683,0.2008,2485.6,2485.1,2.81633928]
[1750921884849,0.2008,2485.6,2485.2,2.61538208]
[1750921885787,0.2008,2485.6,2485.1,2.81632863]
[1750921886084,0.2008,2485.6,2485.2,2.61547956]
[1750921888181,0.2008,2485.6,2485.1,2.81633863]
[1750921888396,0.2008,2485.6,2485.2,2.61547828]
[1750921889682,0.2008,2485.6,2485.3,2.61537434]
[1750921889862,0.777,2485.7,2485.4,2.61523215]
[1750921890063,0.9778,2485.7,2485.4,2.61523215]
[1750921890276,0.9778,2485.7,2485.3,0.2008]
[1750921890277,0.9778,2485.7,2485.3,2.81612574]
[1750921890797,0.9778,2485.7,2485.4,2.61527283]
[1750921890955,0.9778,2485.7,2485.5,2.61514193]
[1750921891154,0.9778,2485.7,2485.3,2.81613857]
[1750921891489,0.9778,2485.7,2485.3,0.2008]
[1750921891676,0.9778,2485.7,2485.5,2.61516379]
[1750921892065,0.9778,2485.7,2485.6,2.61506276]
[1750921892289,2.5167,2485.9,2485.6,2.61506276]
[1750921892584,2.7175,2485.9,2485.6,2.61506276]
[1750921892749,2.7175,2485.9,2485.5,2.61515299]
[1750921892750,0.8326,2486.2,2485.8,2.61485236]
[1750921892954,0.2008,2486.1,2485.8,2.61485236]
[1750921893556,0.2008,2486.1,2485.9,2.61473647]
[1750921894084,0.2008,2486.1,2485.7,1.3289]
[1750921894294,2.5385,2486.4,2486.0,2.61464199]
[1750921894484,2.7393,2486.4,2486.0,2.61464199]
[1750921894690,3.97833,2486.4,2486.0,2.61464199]
[1750921894995,3.97833,2486.4,2486.1,2.61452679]
[1750921895891,3.97833,2486.4,2486.0,2.61458457]
[1750921896403,2.7393,2486.4,2485.9,0.2008]
[1750921896780,2.7393,2486.4,2486.0,2.61464139]
[1750921897400,2.7393,2486.4,2485.9,2.81550735]
[1750921898182,2.7393,2486.4,2486.0,2.6146344]
[1750921898500,2.7393,2486.4,2485.9,2.81548458]
[1750921898705,9.72894965,2486.4,2485.9,0.2008]
[1750921898868,10.87444462,2486.4,2485.9,0.2008]
[1750921899076,0.2008,2486.2,2485.7,2.8156609]
[1750921900190,0.2008,2486.2,2485.7,0.2008]
[1750921900395,0.2008,2486.2,2485.8,2.61480564]
[1750921901276,0.2008,2486.2,2485.9,2.61472294]
[1750921901703,0.2008,2486.2,2485.8,2.61480146]
[1750921902203,0.2008,2486.2,2485.9,2.61474421]
[1750921903803,0.2008,2486.2,2485.8,2.61479987]
[1750921903978,0.2008,2486.2,2485.9,2.61472873]
[1750921904611,0.2008,2486.2,2485.8,2.6147916]
[1750921904795,0.2008,2486.2,2485.9,2.61474547]
[1750921904979,0.2008,2486.2,2485.8,2.61479061]
[1750921906308,0.2008,2486.2,2485.7,2.81567004]
[1750921906507,0.2008,2486.2,2485.8,2.6148361]
[1750921906808,0.2008,2486.2,2485.9,2.61474315]
[1750921907306,0.2008,2486.2,2486.0,2.61459751]
[1750921909513,0.2008,2486.2,2485.9,2.61469809]
[1750921910512,0.2008,2486.2,2485.7,0.2008]
[1750921910719,0.2008,2486.2,2485.9,2.61469278]
[1750921910887,0.2008,2486.2,2485.8,2.61481047]
[1750921911088,0.8211,2486.1,2485.7,0.2008]
[1750921911289,0.2008,2486.0,2485.6,2.61500182]
[1750921911712,7.19044965,2486.0,2485.5,0.2008]
[1750921912017,0.2008,2485.7,2485.3,2.81612495]
[1750921912513,0.8024,2485.6,2484.8,0.8314]
[1750921912815,0.2008,2485.4,2484.9,12.81659347]
[1750921913016,0.8024,2485.6,2485.2,2.81621454]
[1750921913216,0.2008,2485.5,2485.2,2.615474]
[1750921913897,0.2008,2485.5,2485.1,2.81636174]
[1750921914223,0.2008,2485.5,2485.2,2.61547766]
[1750921914599,0.2008,2485.5,2485.1,2.81634365]
[1750921914799,0.2008,2485.5,2485.2,2.61545967]
[1750921915006,0.2008,2485.5,2485.1,2.81634508]
[1750921915602,0.2008,2485.5,2485.2,2.61547446]
[1750921916293,0.2008,2485.5,2485.1,0.2008]
[1750921917203,0.2008,2485.5,2485.2,2.61547944]
[1750921918624,0.7534,2485.9,2485.4,2.61521748]
[1750921918926,0.7534,2485.9,2485.6,2.61505935]
[1750921919504,0.7534,2485.9,2485.2,1.3317]
[1750921919704,0.7534,2485.9,2485.4,2.61520874]
[1750921919894,0.8119,2485.8,2485.2,2.61539073]
[1750921920222,0.8119,2485.8,2485.1,2.61556392]
[1750921920223,0.8119,2485.7,2485.1,2.61553969]
[1750921920523,0.8119,2485.7,2485.4,2.61523138]
[1750921920728,0.8119,2485.7,2485.2,2.615434]
[1750921921227,0.8119,2485.7,2485.3,2.61536365]
[1750921921613,0.8119,2485.7,2485.2,2.61541336]
[1750921921819,0.8119,2485.7,2485.3,2.6153219]
[1750921922136,1.68734046,2485.7,2485.2,2.61541989]
[1750921922630,1.68734046,2485.7,2485.3,2.61536908]
[1750921923005,1.68734046,2485.7,2485.2,2.615426]
[1750921924128,1.68734046,2485.7,2485.2,2.61544605]
[1750921925228,7.79524965,2485.6,2485.0,2.61565103]
[1750921925429,0.8056,2485.5,2484.9,1.334]
[1750921925730,0.8056,2485.5,2484.9,0.784]
[1750921926040,0.8056,2485.5,2484.9,2.61576376]
[1750921926209,0.8056,2485.5,2484.9,2.61571788]
[1750921926413,0.8056,2485.5,2485.0,2.6156868]
[1750921926614,0.8056,2485.5,2485.1,2.61554806]
[1750921927206,0.8056,2485.5,2485.2,2.61545339]
[1750921927621,0.8056,2485.5,2485.1,2.61553375]
[1750921928123,0.8056,2485.5,2485.2,2.61547612]
[1750921928347,0.8056,2485.5,2485.1,2.6155266]
[1750921928536,0.2008,2485.3,2485.1,2.6155266]
[1750921929043,0.2008,2485.3,2485.2,2.61548366]
[1750921929205,0.8056,2485.5,2485.2,2.61548366]
[1750921929406,0.2008,2485.4,2485.3,2.61537842]
[1750921930108,0.7524,2485.8,2485.5,2.61515337]
[1750921930308,0.2008,2485.7,2485.6,2.61506276]
[1750921930529,0.9532,2485.8,2485.7,2.61495755]
[1750921930804,0.2008,2485.8,2485.7,2.61495755]
[1750921931837,0.8264,2486.2,2485.9,2.61464617]
[1750921932019,1.0272,2486.2,2485.9,2.61464617]
[1750921932649,1.0272,2486.2,2486.0,2.61458378]
[1750921933144,0.2008,2486.2,2485.7,0.2008]
[1750921933441,0.2008,2486.2,2486.1,2.61453682]
[1750921934043,0.2008,2486.2,2486.0,2.61460165]
[1750921934447,0.2008,2486.2,2486.1,2.61453682]
[1750921936048,0.8262,2486.5,2486.0,2.61461963]
[1750921936248,2.5532,2486.7,2486.5,2.61403497]
[1750921936450,0.2008,2486.5,2486.4,2.61416573]
[1750921936957,0.2008,2486.5,2486.4,2.61422136]
[1750921939054,1.727,2486.7,2486.6,2.61401109]
[1750921939228,0.2008,2486.7,2486.5,2.61405389]
[1750921939550,0.2008,2486.7,2486.6,2.61401109]
[1750921940058,0.8118,2486.9,2486.7,2.61384364]
[1750921940359,1.0126,2486.9,2486.7,2.61384364]
[1750921940654,1.0126,2486.9,2486.6,2.61401109]
[1750921940854,1.0126,2486.9,2486.6,2.61394848]
[1750921941257,1.28696,2486.9,2486.6,2.61394848]
[1750921941651,1.28696,2486.9,2486.5,2.81483712]
[1750921941851,1.28696,2486.9,2486.6,2.61400408]
[1750921942354,1.0126,2486.9,2486.6,2.61400408]
[1750921942850,1.0126,2486.9,2486.5,2.8148652]
[1750921944549,1.0126,2486.9,2486.1,0.7624]
[1750921944550,0.8118,2486.9,2486.1,0.7624]
[1750921944743,0.2008,2486.8,2486.5,2.614062]
[1750921945360,0.2008,2486.8,2486.5,2.61405873]
[1750921946851,0.2008,2486.8,2486.5,3.37050613]
[1750921947258,0.2008,2486.8,2486.5,2.61410613]
[1750921947654,0.9961,2486.8,2486.4,0.2008]
[1750921948679,0.2008,2486.6,2486.2,2.81519061]
[1750921949385,0.2008,2486.6,2486.2,2.8152278]
[1750921949871,0.7932,2486.5,2485.9,2.61466327]
[1750921950038,0.2008,2486.4,2485.9,2.81546327]
[1750921950241,0.2008,2486.4,2486.0,2.61463151]
[1750921950638,0.2008,2486.4,2485.9,0.2008]
[1750921951128,0.7743,2486.3,2485.9,0.2008]
[1750921951931,0.7743,2486.3,2485.7,2.61489098]
[1750921952168,0.2008,2486.1,2485.7,2.61489098]
[1750921952921,0.7858,2486.0,2485.6,0.2008]
[1750921953128,0.7858,2486.0,2485.7,2.6149541]
[1750921953376,0.7858,2486.0,2485.6,0.2008]
[1750921953745,0.7858,2486.0,2485.5,2.61511838]
[1750921953746,0.2008,2485.9,2485.5,2.61511838]
[1750921954258,0.2008,2485.9,2485.4,0.2008]
[1750921954430,0.2008,2485.9,2485.7,2.6149437]
[1750921954930,0.2008,2485.9,2485.6,2.61500279]
[1750921955380,0.2008,2485.9,2485.5,0.55]
[1750921955530,0.7858,2486.0,2485.7,2.61489708]
[1750921956563,0.7858,2486.0,2485.8,2.61478239]
[1750921956860,0.2008,2486.1,2485.9,2.61467874]
[1750921957229,0.2008,2486.1,2485.8,2.61480166]
[1750921957936,0.2008,2486.1,2485.9,2.61473595]
[1750921958436,0.7654,2486.3,2485.9,2.61473595]
[1750921958649,0.9662,2486.3,2485.9,2.61473595]
[1750921959061,0.2008,2486.3,2486.0,0.8052]
[1750921959263,0.8224,2486.7,2486.3,2.6142578]
[1750921959431,0.2008,2486.6,2486.3,2.6142578]
[1750921959632,0.2008,2486.6,2486.4,2.61415615]
[1750921959832,0.2008,2486.6,2486.5,2.61411622]
[1750921960033,0.2008,2486.6,2486.3,2.61426499]
[1750921960645,0.2008,2486.6,2486.4,2.61412746]
[1750921960841,2.558,2486.9,2486.4,2.61412746]
[1750921961068,0.2008,2486.8,2486.4,2.61412746]
[1750921961779,0.2008,2486.8,2486.4,2.61422067]
[1750921962972,0.2008,2486.8,2486.3,0.2008]
[1750921963449,0.2008,2486.8,2486.3,2.8151229]
[1750921964867,0.2008,2486.8,2486.4,2.61417095]
[1750921967674,0.2008,2486.8,2486.5,2.6140812]
[1750921967845,0.2008,2486.8,2486.4,2.61416028]
[1750921969347,0.2008,2486.8,2486.3,2.81506721]
[1750921969546,0.2008,2486.8,2486.3,0.2008]
[1750921969979,0.2008,2486.8,2486.3,2.81512479]
[1750921970359,0.2008,2486.8,2486.4,2.61421118]
[1750921970875,0.2008,2486.8,2486.3,2.81506899]
[1750921971180,0.8021,2486.7,2486.3,2.81506899]
[1750921971989,0.8021,2486.7,2486.3,0.2008]
[1750921973084,0.8021,2486.7,2486.3,2.81508447]
[1750921973577,0.8021,2486.7,2486.3,0.2008]
[1750921973880,0.2008,2486.6,2486.3,2.61431946]
[1750921974280,0.2008,2486.6,2486.0,2.61457026]
[1750921974478,0.9522,2486.5,2486.1,2.61449373]
[1750921974684,0.9522,2486.5,2486.0,2.81539374]
[1750921974685,0.9522,2486.5,2486.2,2.61442422]
[1750921974852,0.9522,2486.5,2486.1,2.6144763]
[1750921975784,0.9522,2486.5,2486.0,2.81538313]
[1750921976249,0.2008,2486.3,2486.0,2.61463491]
[1750921976450,0.2008,2486.3,2485.9,2.81550754]
[1750921977275,0.7981,2486.2,2485.9,2.81550754]
[1750921978392,0.7981,2486.2,2485.9,0.2008]
[1750921978589,0.7981,2486.2,2485.9,2.81552646]
[1750921980089,0.7981,2486.2,2486.0,2.61463787]
[1750921980259,0.7981,2486.2,2486.0,2.61464199]
[1750921980985,0.2008,2486.3,2486.1,2.61446549]
[1750921981185,2.4726,2486.4,2486.0,2.61464199]
[1750921981186,0.7516,2486.4,2486.2,2.61443166]
[1750921981488,0.2008,2486.5,2486.3,2.61429033]
[1750921981684,2.4736,2486.7,2486.4,2.61422136]
[1750921981878,2.6744,2486.7,2486.4,2.61422136]
[1750921982076,2.6744,2486.7,2486.2,0.2008]
[1750921982275,0.2008,2486.7,2486.6,2.61401109]
[1750921984002,0.7516,2486.9,2486.7,2.61388669]
[1750921984202,2.512,2487.1,2487.0,2.61359067]
[1750921984516,1.722,2487.1,2486.9,2.61365146]
[1750921985074,1.722,2487.1,2486.8,2.61374199]
[1750921985504,1.722,2487.1,2486.9,2.61369156]
[1750921986494,1.722,2487.1,2486.8,2.61374476]
[1750921986808,1.722,2487.1,2486.9,2.6136857]
[1750921987017,1.722,2487.1,2486.8,2.61374062]
[1750921987474,1.722,2487.1,2486.9,2.6136931]
[1750921987902,1.722,2487.1,2486.8,2.61373929]
[1750921988101,1.722,2487.1,2486.9,2.61360167]
[1750921988304,1.722,2487.1,2487.0,2.61359067]
[1750921988505,0.2008,2487.2,2486.9,2.61361084]
[1750921988978,0.2008,2487.2,2486.8,0.55]
[1750921989184,10.2008,2487.4,2487.0,2.61351398]
[1750921989384,10.2008,2487.4,2487.1,2.61344729]
[1750921989589,10.2008,2487.4,2487.1,2.61347139]
[1750921989971,10.2008,2487.4,2487.0,2.61352895]
[1750921990175,0.2008,2487.4,2486.9,0.2008]
[1750921990380,0.2008,2487.4,2487.2,2.61332309]
[1750921990598,0.2008,2487.4,2487.1,2.61345179]
[1750921990778,0.2008,2487.4,2487.2,2.61331718]
[1750921990979,0.2008,2487.4,2487.3,2.61327543]
[1750921991181,2.4936,2487.5,2487.2,2.61332901]
[1750921991414,2.6944,2487.5,2487.1,2.61343675]
[1750921991779,9.95348965,2487.5,2487.0,0.2008]
[1750921992099,0.2008,2487.3,2486.8,2.81451616]
[1750921993106,0.2008,2487.3,2486.8,0.2008]
[1750921993286,0.2008,2487.3,2486.8,2.81459339]
[1750921995594,0.2008,2487.3,2486.9,2.6136837]
[1750921995789,0.2008,2487.3,2486.8,2.81455645]
[1750921996612,0.2008,2487.3,2486.9,2.61368463]
[1750921996777,0.2008,2487.3,2487.0,2.61358172]
[1750921997201,0.2008,2487.3,2487.1,2.61348151]
[1750921997810,1.721,2487.7,2487.3,2.61326887]
[1750921997992,0.2008,2487.5,2487.3,2.61326887]
[1750921999513,0.2008,2487.5,2487.4,2.61317037]
[1750921999718,11.81149692,2488.0,2487.0,2.81438288]
[1750921999719,0.2008,2487.8,2487.7,2.61279364]
[1750921999919,0.2008,2487.8,2487.6,2.61289181]
[1750922000117,0.2008,2487.8,2487.4,2.61312635]
[1750922000595,0.2008,2487.8,2487.3,3.6308733]
[1750922000596,0.2008,2487.8,2487.6,2.61292301]
[1750922000786,10.0,2488.1,2487.7,2.61285524]
[1750922001121,0.2008,2487.9,2487.6,2.61290209]
[1750922001286,0.2008,2487.9,2487.5,2.81381767]
[1750922001488,0.2008,2487.9,2487.6,2.61295499]
[1750922001999,0.2008,2487.9,2487.5,0.2008]
[1750922002000,0.2008,2487.9,2487.5,2.81381115]
[1750922002623,0.2008,2487.9,2487.5,2.813835]
[1750922002921,0.2008,2487.9,2487.5,0.2008]
[1750922003299,0.7879,2487.8,2487.5,0.2008]
[1750922003897,0.7879,2487.8,2487.3,2.61318238]
[1750922004222,0.9887,2487.8,2487.4,2.61313544]
[1750922004916,0.9887,2487.8,2487.5,2.61300066]
[1750922005121,0.2008,2487.8,2487.5,2.61298178]
[1750922005320,0.2008,2487.8,2487.6,2.61291802]
[1750922005933,0.785,2488.0,2487.7,2.61284547]
[1750922006093,10.0,2488.1,2487.6,2.61292035]
[1750922006094,0.2008,2487.9,2487.6,2.61292035]
[1750922006831,0.2008,2487.9,2487.5,3.56741044]
[1750922007216,0.2008,2487.9,2487.5,2.81385901]
[1750922008637,0.2008,2487.9,2487.5,0.2008]
[1750922008838,0.793,2487.8,2487.3,2.6132299]
[1750922009012,0.9938,2487.8,2487.5,2.61304417]
[1750922009412,0.793,2488.0,2487.6,2.61292147]
[1750922009613,0.9938,2488.0,2487.6,2.61292147]
[1750922009821,0.9938,2488.0,2487.5,2.81384658]
[1750922010018,0.2008,2488.0,2487.7,2.61280365]
[1750922010441,0.2008,2488.0,2487.5,0.2008]
[1750922010611,0.2008,2488.0,2487.5,2.81385974]
[1750922011644,0.2008,2488.0,2487.6,2.61294114]
[1750922011945,0.2008,2488.0,2487.6,2.61296028]
[1750922013213,0.2008,2488.0,2487.5,0.2008]
[1750922013482,0.2008,2488.0,2487.6,2.6128582]
[1750922014436,0.2008,2488.0,2487.5,0.2008]
[1750922014631,0.7916,2487.9,2487.5,2.81385934]
[1750922014842,0.7916,2487.9,2487.5,0.2008]
[1750922015346,0.7916,2487.9,2487.5,2.81381661]
[1750922015553,0.2008,2488.0,2487.7,2.61284759]
[1750922016522,0.2008,2488.0,2487.5,0.2008]
[1750922016751,0.2008,2488.0,2487.7,2.61276452]
[1750922018056,0.2008,2488.0,2487.8,2.61274805]
[1750922018218,0.2008,2488.0,2487.6,2.61292889]
[1750922018419,7.81,2488.7,2487.6,2.61292889]
[1750922018420,0.8328,2488.8,2487.9,0.55]
[1750922018634,0.8328,2488.8,2488.3,2.61212941]
[1750922018818,0.8328,2488.8,2488.3,2.61216341]
[1750922019019,1.57518,2488.8,2488.2,2.61224984]
[1750922019246,1.57518,2488.8,2488.2,2.61233019]
[1750922019447,1.57518,2488.8,2488.3,2.61216514]
[1750922020347,0.8328,2488.8,2488.3,2.61216514]
[1750922020555,0.8328,2488.8,2488.3,2.6121651]
[1750922020733,0.8328,2488.8,2488.2,2.61231672]
[1750922021564,0.8328,2488.8,2488.0,2.6124908]
[1750922021565,0.7576,2489.0,2488.4,2.61203328]
[1750922021747,0.7576,2489.0,2488.3,0.7834]
[1750922021919,0.7576,2489.0,2488.5,2.61200978]
[1750922022249,0.7576,2489.0,2488.6,2.61189811]
[1750922023055,0.7576,2489.0,2488.4,2.61210102]
[1750922023056,0.7576,2489.0,2488.5,2.61195979]
[1750922023823,0.7576,2489.0,2488.4,0.55]
[1750922024052,0.7576,2489.0,2488.7,2.61174816]
[1750922024448,0.00578658,2489.1,2488.8,2.61168199]
[1750922024752,0.00578658,2489.1,2488.8,2.61161384]
[1750922024949,0.00578658,2489.1,2488.9,2.61155196]
[1750922025652,0.00578658,2489.1,2488.9,2.61153516]
[1750922025977,0.00578658,2489.1,2489.0,3.93699055]
[1750922026322,0.00578658,2489.1,2489.0,12.27799055]
[1750922026537,0.00578658,2489.1,2489.0,3.93699055]
[1750922026763,0.00578658,2489.1,2489.0,3.38699055]
[1750922026934,0.00578658,2489.1,2488.8,2.61169248]
[1750922026935,0.00578658,2489.1,2488.9,2.61151558]
[1750922027122,0.00578658,2489.1,2489.0,2.61149055]
[1750922028473,0.00578658,2489.1,2489.0,2.81229055]
[1750922029026,0.00578658,2489.1,2489.0,0.2008]
[1750922029227,0.00578658,2489.1,2489.0,2.61149055]
[1750922029560,0.00578658,2489.1,2488.8,3.16162182]
[1750922029939,0.00578658,2489.1,2489.0,2.61149055]
[1750922030140,0.00578658,2489.1,2488.9,2.61154999]
[1750922030463,0.00578658,2489.1,2489.0,2.61149055]
[1750922030629,0.00578658,2489.1,2488.7,3.42466746]
[1750922030834,0.82688658,2489.1,2488.7,2.61176746]
[1750922031365,0.8292,2488.8,2487.8,0.7863]
[1750922031659,0.8292,2488.5,2487.9,4.0]
[1750922031841,0.8292,2488.5,2487.9,6.61259435]
[1750922032041,0.8292,2488.5,2487.9,2.61259435]
[1750922032634,0.8292,2488.5,2488.0,2.61249867]
[1750922032831,0.7667,2488.7,2488.4,2.61205404]
[1750922033050,0.7667,2488.7,2488.5,2.61195881]
[1750922033244,0.7667,2488.7,2488.6,2.61191031]
[1750922033573,0.7667,2488.9,2488.4,2.61204545]
[1750922033748,1.84394897,2488.9,2488.3,2.61215839]
[1750922033947,1.84394897,2488.9,2488.1,0.55]
[1750922034156,1.84394897,2488.9,2488.4,2.61205503]
[1750922034535,1.84394897,2488.9,2488.5,2.61200516]
[1750922034862,1.84394897,2488.9,2488.4,2.61206135]
[1750922035230,1.84394897,2488.9,2488.5,2.61199702]
[1750922035431,1.84394897,2488.9,2488.7,2.61180437]
[1750922035662,0.7667,2488.9,2488.8,2.61170041]
[1750922035879,0.7667,2488.9,2488.7,2.6117465]
[1750922036075,0.7667,2488.9,2488.8,2.61170041]
[1750922036233,0.7667,2488.9,2488.6,2.611903]
[1750922036564,0.7667,2488.9,2488.5,2.61194058]
[1750922036771,0.7667,2488.9,2488.0,0.826]
[1750922036981,0.7667,2488.9,2488.5,2.61194569]
[1750922037134,0.00578971,2489.1,2488.5,0.7786]
[1750922037463,0.00578971,2489.1,2488.6,0.55]
[1750922037632,0.00578971,2489.1,2488.7,2.61171858]
[1750922037828,0.00578971,2489.1,2488.6,0.55]
[1750922038034,0.00578971,2489.1,2489.0,3.16149055]
[1750922038557,0.00578971,2489.1,2489.0,2.61149055]
[1750922040138,0.00578971,2489.1,2488.9,0.2008]
[1750922040341,0.00578971,2489.1,2488.8,2.61166684]
[1750922040542,0.00578971,2489.1,2489.0,2.61149055]
[1750922040753,0.00578971,2489.1,2488.9,2.61154126]
[1750922042145,0.00578971,2489.1,2488.8,2.81245485]
[1750922043575,0.00578971,2489.1,2488.8,0.2008]
[1750922043776,0.00578971,2489.1,2488.8,2.81245635]
[1750922044167,0.00578971,2489.1,2488.9,2.61158055]
[1750922044344,0.00578971,2489.1,2488.8,2.81243875]
[1750922044870,0.00578971,2489.1,2488.8,0.2008]
[1750922045072,0.8318,2489.0,2488.4,2.61210276]
[1750922045378,0.2008,2488.8,2488.5,2.61193341]
[1750922045669,0.8318,2489.0,2488.4,2.61210469]
[1750922045864,0.2008,2488.7,2488.4,2.61210469]
[1750922047072,0.2008,2488.7,2488.5,2.61200361]
[1750922047379,0.8318,2489.0,2488.6,2.61191031]
[1750922047676,0.2008,2488.9,2488.5,2.6119557]
[1750922048041,0.2008,2488.9,2488.4,2.81287965]
[1750922048243,0.8318,2489.0,2488.3,2.81296374]
[1750922048244,0.2008,2488.7,2488.3,2.81296374]
[1750922048676,0.7503,2488.6,2488.3,2.81296374]
[1750922049367,0.7503,2488.6,2488.3,0.2008]
[1750922049582,0.7503,2488.6,2488.2,2.61228177]
[1750922049583,0.9511,2488.6,2488.2,2.61228177]
[1750922050551,0.9511,2488.6,2488.1,2.81318215]
[1750922051946,0.9511,2488.6,2488.2,2.61228384]
[1750922053281,0.9511,2488.6,2488.1,0.2008]
[1750922053469,0.9511,2488.6,2488.3,2.6121844]
[1750922054948,0.00578971,2489.1,2488.5,10.55]
[1750922055147,0.00578971,2489.1,2488.7,2.61179579]
[1750922055347,0.00578971,2489.1,2488.9,2.61159318]